fUSD/lending_fUSD_20250502
["ID","MTS","AMOUNT","RATE_DAILY","PERIOD"]
[359612480,1746183047335,-450.0,0.00019786,2]
[359612482,1746183047344,-450.0,0.00019786,2]
[359612484,1746183047353,-1589.63,0.00019786,2]
[359612486,1746183047363,-450.0,0.00019786,2]
[359612488,1746183047371,-530.94,0.00019786,2]
[359612490,1746183047380,-450.0,0.00019786,2]
[359612492,1746183047389,-1133.13,0.00019786,2]
[359612494,1746183047398,-450.0,0.00019786,2]
[359612496,1746183047408,-478.72,0.00019786,2]
[359612498,1746183047417,-450.0,0.00019786,2]
[359612500,1746183047426,-450.0,0.00019787,2]
[359612502,1746183047435,-450.0,0.00019787,2]
[359612504,1746183047445,-450.0,0.00019787,2]
[359612506,1746183047454,-181.62865943,0.00019793,2]
[359612507,1746183047463,-157.2124999,0.00019799,2]
[359612509,1746183047472,-150.0,0.00019805,2]
[359612511,1746183047481,-150.0,0.00019821,2]
[359612513,1746183047491,-150.0,0.0001983,2]
[359612515,1746183047500,-150.0,0.0001984,2]
[359612517,1746183047510,-150.0,0.00019848,2]
[359612519,1746183047519,-150.0,0.0001987,2]
[359612521,1746183047528,-150.0,0.00019872,2]
[359612523,1746183047537,-150.0,0.00019873,2]
[359612525,1746183047546,-150.0,0.00019873,2]
[359612527,1746183047556,-12500.0,0.000199,2]
[359612529,1746183047565,-5800.0,0.000199,2]
[359612531,1746183047573,-11545.85970186,0.000199,2]
[359612533,1746183047583,-275.9319696,0.000199,2]
[359612535,1746183047592,-181.62865943,0.000199,2]
[359612537,1746183047600,-1110.89685734,0.000199,2]
[359612539,1746183047610,-150.0,0.0001991,2]
[359612541,1746183047618,-150.0,0.00019924,2]
[359612543,1746183047627,-150.0,0.00019934,2]
[359612545,1746183047636,-250.0,0.00019935,2]
[359612547,1746183047645,-150.0,0.00019936,2]
[359612549,1746183047656,-150.0,0.00019939,2]
[359612551,1746183047666,-150.0,0.00019942,2]
[359612552,1746183047675,-151.0,0.00019943,2]
[359612554,1746183047684,-207.4,0.00019953,2]
[359612556,1746183047695,-151.0,0.00019954,2]
[359612558,1746183047704,-151.0,0.00019954,2]
[359612560,1746183047713,-668.65185757,0.00019954,2]
[359612562,1746183047722,-275.9319696,0.00019956,2]
[359612564,1746183047734,-150.0,0.00019968,2]
[359612566,1746183047743,-500.0,0.00019973,2]
[359612568,1746183047752,-158.62819397,0.00019973,2]
[359612570,1746183047761,-377.0,0.00019973,2]
[359612572,1746183047771,-501.87563173,0.00019973,2]
[359612574,1746183047780,-500.0,0.00019973,2]
[359612576,1746183047789,-513.4813242,0.00019973,2]
[359612578,1746183047798,-174.82630884,0.00019973,2]
[359612580,1746183047807,-500.0,0.00019973,2]
[359612582,1746183047816,-500.0,0.00019973,2]
[359612584,1746183047826,-500.0,0.00019973,2]
[359612586,1746183047834,-150.0,0.00019975,2]
[359612588,1746183047843,-150.0,0.00019983,2]
[359612590,1746183047853,-150.0,0.00019984,2]
[359612592,1746183047862,-797.0,0.00019989,2]
[359612594,1746183047876,-1207.0,0.00019989,2]
[359612596,1746183047885,-550.0,0.00019989,2]
[359612598,1746183047896,-2071.0,0.00019989,2]
[359612600,1746183047905,-150.0,0.00019989,2]
[359612602,1746183047914,-4006.0,0.00019989,2]
[359612604,1746183047924,-6753.0,0.00019989,2]
[359612606,1746183047933,-153.0,0.00019989,2]
[359612607,1746183047942,-876.0,0.00019989,2]
[359612609,1746183047951,-878.0,0.00019989,2]
[359612611,1746183047960,-196.0,0.0001999,2]
[359612613,1746183047970,-150.72,0.00019996,2]
[359612615,1746183047979,-450.0,0.00019998,2]
[359612617,1746183047988,-450.0,0.00019998,2]
[359612619,1746183047997,-450.0,0.00019998,2]
[359612621,1746183048006,-450.0,0.00019998,2]
[359612623,1746183048016,-450.0,0.00019998,2]
[359612625,1746183048025,-1029.58,0.00019998,2]
[359612627,1746183048034,-450.0,0.00019998,2]
[359612629,1746183048044,-181.63208868,0.00019998,2]
[359612645,1746183048183,-278.45791132,0.00019998,2]
[359612647,1746183048193,-289.55208868,0.00019998,2]
[359612651,1746183048222,-160.44791132,0.00019998,2]
[359612653,1746183048231,-775.77,0.00019998,2]
[359612655,1746183048241,-920.76,0.00019998,2]
[359612657,1746183048250,-1136.79,0.00019998,2]
[359612658,1746183048260,-3659.61,0.00019998,2]
[359612660,1746183048270,-548.61,0.00019998,2]
[359612662,1746183048279,-890.45,0.00019998,2]
[359612664,1746183048289,-5774.64,0.00019998,2]
[359612666,1746183048299,-450.0,0.00019998,2]
[359612668,1746183048308,-752.52,0.00019998,2]
[359612670,1746183048318,-943.61,0.00019998,2]
[359612672,1746183048328,-1394.94,0.00019998,2]
[359612674,1746183048338,-2841.57,0.00019998,2]
[359612676,1746183048348,-1100.77,0.00019998,2]
[359612678,1746183048359,-1409.19,0.00019998,2]
[359612680,1746183048368,-1581.4,0.00019998,2]
[359612682,1746183048378,-2480.83,0.00019998,2]
[359612684,1746183048388,-927.9,0.00019998,2]
[359612686,1746183048397,-7404.4,0.00019998,2]
[359612688,1746183048407,-772.89,0.00019998,2]
[359612690,1746183048417,-548.16,0.00019998,2]
[359612692,1746183048429,-7682.85,0.00019998,2]
[359612694,1746183048438,-7511.07,0.00019998,2]
[359612696,1746183048448,-450.0,0.00019998,2]
[359612698,1746183048458,-1006.87,0.00019998,2]
[359612700,1746183048467,-450.0,0.00019998,2]
[359612702,1746183048476,-7426.77,0.00019998,2]
[359612703,1746183048485,-38771.56565665,0.00019998,2]
[359612704,1746183048523,-328.1,0.00019998,2]
[359612770,1746183049147,-450.0,0.00019785,2]
[359612772,1746183049157,-450.0,0.00019785,2]
[359612774,1746183049166,-450.0,0.00019785,2]
[359612776,1746183049175,-450.0,0.00019785,2]
[359612778,1746183049185,-10821.59801222,0.00019998,2]
[359612781,1746183049205,-10802.15659927,0.00019998,2]
[359612786,1746183049245,-450.0,0.00019785,2]
[359612788,1746183049255,-50.0,0.00019998,2]
[359612791,1746183049270,-1503.80677074,0.00019998,2]
[359612793,1746183049282,-7438.8159,0.00019998,2]
[359613471,1746183112687,150.11717,0.0002,23]
[359613472,1746183139759,200.0,0.00019032,2]
[359613473,1746183140893,184.03,0.0001958,2]
[359613474,1746183141540,802.12048691,0.00019464,2]
[359613475,1746183142585,250.0,0.00017,2]
[359613476,1746183143660,300.0,0.00019,2]
[359613477,1746183238250,-300.0,0.00019684,2]
[359613478,1746183238273,-1000.0,0.00019685,2]
[359613479,1746183238653,-1000.0,0.00019685,2]
[359613480,1746183238675,-500.0,0.00019685,2]
[359613481,1746183238696,-2500.0,0.00019685,2]
[359613482,1746183238721,-250.0,0.00019692,2]
[359613483,1746183238745,-200.0,0.00019692,2]
[359613484,1746183238767,-166.63,0.00019699,2]
[359613485,1746183238792,-200.0,0.00019747,2]
[359613486,1746183238812,-850.0,0.00019784,2]
[359613487,1746183238839,-500.0,0.00019784,2]
[359613488,1746183238864,-500.0,0.00019784,2]
[359613489,1746183238891,-500.0,0.00019784,2]
[359613490,1746183238917,-184.02362913,0.00019784,2]
[359613491,1746183238940,-500.0,0.00019784,2]
[359613492,1746183238962,-450.0,0.00019785,2]
[359613493,1746183238987,-399.34637087,0.00019785,2]
[359613494,1746183240655,-50.65362913,0.00019785,2]
[359613495,1746183240679,-514.99,0.00019785,2]
[359613496,1746183240703,-538.38,0.00019785,2]
[359613497,1746183240725,-450.0,0.00019785,2]
[359613498,1746183240748,-450.0,0.00019785,2]
[359613499,1746183240772,-450.0,0.00019785,2]
[359613500,1746183240797,-153.30179344,0.00019785,2]
[359613501,1746183240819,-450.0,0.00019785,2]
[359613502,1746183240841,-594.3,0.00019785,2]
[359613503,1746183240863,-450.0,0.00019785,2]
[359613504,1746183240886,-450.0,0.00019785,2]
[359613505,1746183240907,-450.0,0.00019785,2]
[359613506,1746183240929,-793.97,0.00019785,2]
[359613507,1746183240952,-450.0,0.00019785,2]
[359613508,1746183240980,-450.0,0.00019785,2]
[359613509,1746183241003,-663.26,0.00019785,2]
[359613510,1746183241028,-450.0,0.00019785,2]
[359613511,1746183241051,-764.97,0.00019785,2]
[359613512,1746183241074,-639.69,0.00019785,2]
[359613513,1746183241096,-726.54,0.00019785,2]
[359613514,1746183241121,-59.94457743,0.00019785,2]
[359613515,1746183241693,-390.05542257,0.00019785,2]
[359613516,1746183241719,-926.14,0.00019785,2]
[359613517,1746183241737,-450.0,0.00019785,2]
[359613518,1746183241759,-4144.59,0.00019785,2]
[359613519,1746183241779,-1654.08,0.00019785,2]
[359613520,1746183241801,-554.65,0.00019785,2]
[359613521,1746183241821,-530.19,0.00019785,2]
[359613522,1746183241839,-450.0,0.00019785,2]
[359613523,1746183241857,-900.29457743,0.00019785,2]
[359613524,1746183242078,-244.50542257,0.00019785,2]
[359613525,1746183242099,-450.0,0.00019785,2]
[359613526,1746183242120,-450.0,0.00019785,2]
[359613527,1746183242142,-450.0,0.00019785,2]
[359613528,1746183242163,-450.0,0.00019785,2]
[359613529,1746183242184,-594.03,0.00019785,2]
[359613530,1746183242205,-1253.48,0.00019785,2]
[359613531,1746183242227,-3677.87,0.00019785,2]
[359613532,1746183242249,-917.28,0.00019785,2]
[359613533,1746183242276,-754.21,0.00019785,2]
[359613534,1746183242299,-450.0,0.00019785,2]
[359613535,1746183242322,-308.62457743,0.00019785,2]
[359613536,1746183243120,-1135.32542257,0.00019785,2]
[359613537,1746183243147,-450.0,0.00019785,2]
[359613538,1746183243174,-948.68,0.00019785,2]
[359613539,1746183243201,-327.09153043,0.00019785,2]
[359613540,1746183243227,-450.0,0.00019785,2]
[359613541,1746183243253,-826.68,0.00019785,2]
[359613542,1746183243281,-550.3,0.00019785,2]
[359613543,1746183243307,-450.0,0.00019785,2]
[359613544,1746183243333,-522.55,0.00019785,2]
[359613545,1746183243360,-559.0,0.00019785,2]
[359613546,1746183243387,-450.0,0.00019785,2]
[359613547,1746183243411,-450.0,0.00019785,2]
[359613548,1746183243436,-450.0,0.00019785,2]
[359613549,1746183243461,-450.0,0.00019785,2]
[359613550,1746183243486,-1980.373047,0.00019785,2]
[359613551,1746183243724,-200.0,0.00019684,2]
[359613552,1746183243756,-244.736953,0.00019785,2]
[359613553,1746183243785,-450.0,0.00019785,2]
[359613554,1746183243814,-830.31,0.00019785,2]
[359613555,1746183243841,-450.0,0.00019785,2]
[359613556,1746183243872,-450.0,0.00019785,2]
[359613557,1746183243908,-450.0,0.00019785,2]
[359613558,1746183243938,-893.99,0.00019785,2]
[359613559,1746183243965,-450.0,0.00019785,2]
[359613560,1746183243991,-651.59,0.00019785,2]
[359613561,1746183244017,-450.0,0.00019785,2]
[359613562,1746183244044,-450.0,0.00019785,2]
[359613563,1746183244069,-450.0,0.00019785,2]
[359613564,1746183244095,-450.0,0.00019785,2]
[359613565,1746183244122,-450.0,0.00019785,2]
[359613566,1746183244147,-450.0,0.00019785,2]
[359613567,1746183244174,-450.0,0.00019785,2]
[359613568,1746183244204,-1779.373047,0.00019785,2]
[359613569,1746183244453,-4035.946953,0.00019785,2]
[359613570,1746183244481,-756.34,0.00019785,2]
[359613571,1746183244509,-450.0,0.00019785,2]
[359613572,1746183244536,-711.3,0.00019785,2]
[359613573,1746183244564,-450.0,0.00019785,2]
[359613574,1746183244592,-1796.92,0.00019785,2]
[359613575,1746183244618,-537.98,0.00019785,2]
[359613576,1746183244643,-450.0,0.00019785,2]
[359613577,1746183244668,-811.513047,0.00019785,2]
[359613578,1746183244788,-2043.636953,0.00019785,2]
[359613579,1746183244811,-450.0,0.00019785,2]
[359613580,1746183244835,-686.07,0.00019785,2]
[359613581,1746183244858,-629.69,0.00019785,2]
[359613582,1746183244881,-450.0,0.00019785,2]
[359613583,1746183244905,-805.3,0.00019785,2]
[359613584,1746183244928,-587.3,0.00019785,2]
[359613585,1746183244956,-948.3,0.00019785,2]
[359613586,1746183244981,-519.6,0.00019785,2]
[359613587,1746183245007,-2880.103047,0.00019785,2]
[359613588,1746183245090,-100.786953,0.00019785,2]
[359613589,1746183245113,-450.0,0.00019785,2]
[359613590,1746183245139,-644.65,0.00019785,2]
[359613591,1746183245164,-450.0,0.00019785,2]
[359613592,1746183245187,-450.0,0.00019785,2]
[359613593,1746183245209,-700.15,0.00019785,2]
[359613594,1746183245231,-688.58,0.00019785,2]
[359613595,1746183245251,-1402.78,0.00019785,2]
[359613596,1746183245693,-494.07,0.00019785,2]
[359613597,1746183245751,-719.29,0.00019785,2]
[359613598,1746183245774,-886.55,0.00019785,2]
[359613599,1746183245798,-510.85,0.00019785,2]
[359613600,1746183245820,-450.0,0.00019785,2]
[359613601,1746183245840,-450.0,0.00019785,2]
[359613602,1746183245863,-450.0,0.00019785,2]
[359613603,1746183245884,-1106.39,0.00019785,2]
[359613604,1746183245905,-45.903047,0.00019785,2]
[359613605,1746183246065,-509.326953,0.00019785,2]
[359613606,1746183246088,-821.69,0.00019785,2]
[359613607,1746183246112,-701.37,0.00019785,2]
[359613608,1746183246132,-1158.1,0.00019785,2]
[359613609,1746183246154,-683.91,0.00019785,2]
[359613610,1746183246177,-450.0,0.00019785,2]
[359613611,1746183246197,-450.0,0.00019785,2]
[359613612,1746183246219,-450.0,0.00019785,2]
[359613613,1746183246240,-479.75,0.00019785,2]
[359613614,1746183246261,-718.04,0.00019785,2]
[359613615,1746183246281,-543.23,0.00019785,2]
[359613616,1746183246302,-2087.52,0.00019785,2]
[359613617,1746183246323,-450.0,0.00019785,2]
[359613618,1746183246342,-497.063047,0.00019785,2]
[359613619,1746183246626,-151.526953,0.00019785,2]
[359613620,1746183246647,-450.0,0.00019785,2]
[359613621,1746183246669,-623.27,0.00019785,2]
[359613622,1746183246689,-450.0,0.00019785,2]
[359613623,1746183246714,-2492.89,0.00019785,2]
[359613624,1746183246735,-450.0,0.00019785,2]
[359613625,1746183246757,-497.99,0.00019785,2]
[359613626,1746183246780,-450.0,0.00019785,2]
[359613627,1746183246800,-450.0,0.00019785,2]
[359613628,1746183246821,-450.0,0.00019785,2]
[359613629,1746183246842,-450.0,0.00019785,2]
[359613630,1746183246864,-450.0,0.00019785,2]
[359613631,1746183246885,-592.9,0.00019785,2]
[359613632,1746183246906,-450.0,0.00019785,2]
[359613633,1746183246928,-1008.53,0.00019785,2]
[359613634,1746183246952,-582.893047,0.00019785,2]
[359613635,1746183247355,-353.4328,0.00019685,2]
[359613636,1746183247378,-835.526953,0.00019785,2]
[359613637,1746183247401,-450.0,0.00019785,2]
[359613638,1746183247422,-464.37,0.00019785,2]
[359613639,1746183247443,-796.75,0.00019785,2]
[359613640,1746183247465,-450.0,0.00019785,2]
[359613641,1746183247487,-3495.56,0.00019785,2]
[359613642,1746183247510,-1130.68,0.00019785,2]
[359613643,1746183247531,-936.06,0.00019785,2]
[359613644,1746183247552,-450.0,0.00019785,2]
[359613645,1746183247572,-450.0,0.00019785,2]
[359613646,1746183247593,-187.620247,0.00019785,2]
[359613647,1746183247623,-262.379753,0.00019785,2]
[359613648,1746183247643,-450.0,0.00019785,2]
[359613649,1746183247663,-450.0,0.00019785,2]
[359613650,1746183247684,-2553.54,0.00019785,2]
[359613651,1746183247709,-1085.27,0.00019785,2]
[359613652,1746183247730,-711.73,0.00019785,2]
[359613653,1746183247753,-450.0,0.00019785,2]
[359613654,1746183247778,-1168.7,0.00019785,2]
[359613655,1746183247799,-525.32,0.00019785,2]
[359613656,1746183247821,-546.78947927,0.00019785,2]
[359613657,1746183247842,-505.03877145,0.00019785,2]
[359613658,1746183247864,-450.0,0.00019785,2]
[359613659,1746183247886,-450.0,0.00019785,2]
[359613660,1746183247907,-391.23199628,0.00019785,2]
[359613661,1746183247956,-58.76800372,0.00019785,2]
[359613662,1746183247979,-450.0,0.00019785,2]
[359613663,1746183248001,-450.0,0.00019785,2]
[359613664,1746183248024,-560.25,0.00019785,2]
[359613665,1746183248047,-7428.52,0.00019785,2]
[359613666,1746183248068,-450.0,0.00019785,2]
[359613667,1746183248089,-450.0,0.00019785,2]
[359613668,1746183248113,-152.46199628,0.00019785,2]
[359613669,1746183249137,-297.53800372,0.00019785,2]
[359613670,1746183249159,-662.45,0.00019785,2]
[359613671,1746183249180,-464.71,0.00019785,2]
[359613672,1746183249202,-450.0,0.00019785,2]
[359613673,1746183249223,-450.0,0.00019785,2]
[359613674,1746183249245,-450.0,0.00019785,2]
[359613675,1746183249268,-2091.04,0.00019785,2]
[359613676,1746183249291,-450.0,0.00019785,2]
[359613677,1746183249313,-529.89,0.00019785,2]
[359613678,1746183249336,-556.59,0.00019785,2]
[359613679,1746183249358,-683.78,0.00019785,2]
[359613680,1746183249381,-814.63,0.00019785,2]
[359613681,1746183249408,-1313.53,0.00019785,2]
[359613682,1746183249452,-450.0,0.00019785,2]
[359613683,1746183249497,-335.84199628,0.00019785,2]
[359613684,1746183249639,-114.15800372,0.00019785,2]
[359613685,1746183249663,-450.0,0.00019785,2]
[359613686,1746183249688,-519.44,0.00019785,2]
[359613687,1746183249711,-7554.43,0.00019785,2]
[359613688,1746183249733,-635.67,0.00019785,2]
[359613689,1746183249756,-553.19,0.00019785,2]
[359613690,1746183249779,-173.11199628,0.00019785,2]
[359613691,1746183250016,-470.60800372,0.00019785,2]
[359613692,1746183250037,-450.0,0.00019785,2]
[359613693,1746183250058,-9079.39199628,0.00019785,2]
[359613694,1746183250174,-2671.82800372,0.00019785,2]
[359613695,1746183250203,-450.0,0.00019785,2]
[359613696,1746183250230,-845.37,0.00019785,2]
[359613697,1746183250254,-450.0,0.00019785,2]
[359613698,1746183250280,-450.0,0.00019785,2]
[359613699,1746183250305,-450.0,0.00019785,2]
[359613700,1746183250331,-4682.80199628,0.00019785,2]
[359613701,1746183250380,-2515.30800372,0.00019785,2]
[359613702,1746183250409,-450.0,0.00019785,2]
[359613703,1746183250437,-1364.64,0.00019785,2]
[359613704,1746183250468,-450.0,0.00019785,2]
[359613705,1746183250496,-1723.48,0.00019785,2]
[359613706,1746183250527,-450.0,0.00019785,2]
[359613707,1746183250555,-450.0,0.00019785,2]
[359613708,1746183250581,-1062.61,0.00019785,2]
[359613709,1746183250607,-450.0,0.00019785,2]
[359613710,1746183250629,-450.0,0.00019785,2]
[359613711,1746183250651,-633.96199628,0.00019785,2]
[359613712,1746183251276,-1.17800372,0.00019785,2]
[359613713,1746183251298,-499.98511216,0.00019785,2]
[359613714,1746183251320,-450.0,0.00019785,2]
[359613715,1746183251342,-964.92,0.00019785,2]
[359613716,1746183251364,-450.0,0.00019785,2]
[359613717,1746183251385,-450.0,0.00019785,2]
[359613718,1746183251407,-450.0,0.00019785,2]
[359613719,1746183251428,-883.15,0.00019785,2]
[359613720,1746183251449,-748.34,0.00019785,2]
[359613721,1746183251471,-450.0,0.00019785,2]
[359613722,1746183251493,-450.0,0.00019785,2]
[359613723,1746183251516,-450.0,0.00019785,2]
[359613724,1746183251537,-450.0,0.00019785,2]
[359613725,1746183251558,-1071.54,0.00019785,2]
[359613726,1746183251579,-792.74,0.00019785,2]
[359613727,1746183251601,-485.9,0.00019785,2]
[359613728,1746183251622,-952.24688412,0.00019785,2]
[359613729,1746183251647,-210.36311588,0.00019785,2]
[359613730,1746183251667,-729.38,0.00019785,2]
[359613731,1746183251688,-450.0,0.00019785,2]
[359613732,1746183251712,-842.87,0.00019785,2]
[359613733,1746183251733,-952.51,0.00019785,2]
[359613734,1746183251756,-392.34791614,0.00019785,2]
[359613735,1746183251777,-944.68,0.00019785,2]
[359613736,1746183251800,-450.0,0.00019785,2]
[359613737,1746183251821,-450.0,0.00019785,2]
[359613738,1746183251841,-1444.02,0.00019785,2]
[359613739,1746183251862,-450.0,0.00019785,2]
[359613740,1746183251884,-615.95,0.00019785,2]
[359613741,1746183251905,-935.37,0.00019785,2]
[359613742,1746183251927,-450.0,0.00019786,2]
[359613743,1746183251948,-682.50896798,0.00019786,2]
[359613744,1746183252206,-450.0,0.00019785,2]
[359613745,1746183252228,-402.03103202,0.00019786,2]
[359613746,1746183252248,-450.0,0.00019786,2]
[359613747,1746183252269,-450.0,0.00019786,2]
[359613748,1746183252290,-450.0,0.00019786,2]
[359613749,1746183252312,-450.0,0.00019786,2]
[359613750,1746183252333,-450.0,0.00019786,2]
[359613751,1746183252354,-1067.74,0.00019786,2]
[359613752,1746183252376,-450.0,0.00019786,2]
[359613753,1746183252398,-485.26,0.00019786,2]
[359613754,1746183252420,-606.0,0.00019786,2]
[359613755,1746183252441,-974.51,0.00019786,2]
[359613756,1746183252463,-1299.29,0.00019786,2]
[359613757,1746183252484,-450.0,0.00019786,2]
[359613758,1746183252506,-450.0,0.00019786,2]
[359613759,1746183252527,-450.0,0.00019786,2]
[359613760,1746183252548,-450.0,0.00019786,2]
[359613761,1746183252570,-215.16896798,0.00019786,2]
[359613762,1746183252603,-456.67103202,0.00019786,2]
[359613763,1746183252624,-1704.76,0.00019786,2]
[359613764,1746183252644,-450.0,0.00019786,2]
[359613765,1746183252665,-753.0,0.00019786,2]
[359613766,1746183252687,-450.0,0.00019786,2]
[359613767,1746183252711,-1684.11,0.00019786,2]
[359613768,1746183252731,-758.66,0.00019786,2]
[359613769,1746183252753,-2046.28,0.00019786,2]
[359613770,1746183252775,-450.0,0.00019786,2]
[359613771,1746183252796,-837.41,0.00019786,2]
[359613772,1746183252816,-409.10896798,0.00019786,2]
[359613773,1746183253642,-464.71,0.00019785,2]
[359613774,1746183253663,-40.89103202,0.00019786,2]
[359613775,1746183253684,-491.01,0.00019786,2]
[359613776,1746183253706,-450.0,0.00019786,2]
[359613777,1746183253729,-450.0,0.00019786,2]
[359613778,1746183253752,-450.0,0.00019786,2]
[359613779,1746183253772,-450.0,0.00019786,2]
[359613780,1746183253794,-450.0,0.00019786,2]
[359613781,1746183253817,-667.72,0.00019786,2]
[359613782,1746183253836,-450.0,0.00019786,2]
[359613783,1746183253856,-450.0,0.00019786,2]
[359613784,1746183253875,-3499.71,0.00019786,2]
[359613785,1746183253898,-670.97,0.00019786,2]
[359613786,1746183253918,-1014.98896798,0.00019786,2]
[359613787,1746183253951,-518.32103202,0.00019786,2]
[359613788,1746183253973,-500.79,0.00019786,2]
[359613789,1746183253997,-820.7,0.00019786,2]
[359613790,1746183254020,-450.0,0.00019786,2]
[359613791,1746183254043,-450.0,0.00019786,2]
[359613792,1746183254064,-157.0489496,0.00019799,2]
[359613793,1746183254087,-1000.0,0.00019886,2]
[359613794,1746183254108,-802.12048691,0.00019898,2]
[359613795,1746183254125,-5301.01953147,0.00019898,2]
[359613796,1746183254153,-735.06726853,0.00019898,2]
[359613797,1746183254171,-629.23978265,0.000199,2]
[359613798,1746183254192,-8635.69294882,0.000199,2]
[359613799,1746183255189,-450.0,0.00019785,2]
[359613800,1746183255211,-986.68,0.00019785,2]
[359613801,1746183255231,-450.0,0.00019785,2]
[359613802,1746183255254,-6081.83,0.00019785,2]
[359613803,1746183255275,-2031.49,0.000199,2]
[359613804,1746183255308,-1832.81705118,0.000199,2]
[359613805,1746183255329,-1405.27234933,0.000199,2]
[359613806,1746183255350,-320.30931378,0.000199,2]
[359613807,1746183255370,-6441.60128571,0.000199,2]
[359613808,1746183255401,-10000.0,0.000199,2]
[359613809,1746183256692,-2375.63,0.00019785,2]
[359613810,1746183256716,-4636.3388591,0.000199,2]
[359613811,1746183256737,-151.0,0.00019943,2]
[359613812,1746183256760,-207.4,0.00019953,2]
[359613813,1746183256781,-151.0,0.00019954,2]
[359613814,1746183256802,-668.65185757,0.00019954,2]
[359613815,1746183256822,-151.0,0.00019954,2]
[359613816,1746183256842,-500.0,0.00019973,2]
[359613817,1746183256864,-1158.97928333,0.00019986,2]
[359613818,1746183256898,-10000.0,0.00019986,2]
[359613819,1746183256963,-450.0,0.00019785,2]
[359613820,1746183256984,-9550.0,0.00019986,2]
[359613821,1746183257031,-10000.0,0.00019986,2]
[359613822,1746183258181,-450.0,0.00019985,2]
[359613823,1746183258204,-9550.0,0.00019986,2]
[359613824,1746183258234,-10000.0,0.00019986,2]
[359613825,1746183258961,164.56,0.00019123,2]
[359613826,1746183259050,-450.0,0.00019785,2]
[359613827,1746183259073,-688.04,0.00019785,2]
[359613828,1746183259096,-450.0,0.00019785,2]
[359613829,1746183259119,-684.86,0.00019785,2]
[359613830,1746183259141,-7727.1,0.00019986,2]
[359613831,1746183259849,-760.89,0.00019785,2]
[359613832,1746183259871,-258.2762,0.000199,2]
[359613833,1746183259894,-8980.8338,0.00019986,2]
[359613834,1746183259930,-10000.0,0.00019986,2]
[359613835,1746183260223,-7377.14730507,0.00019986,2]
[359613836,1746183260244,-2622.85269493,0.00019986,2]
[359613837,1746183260764,-10000.0,0.00019986,2]
[359613838,1746183261505,-450.0,0.00019785,2]
[359613839,1746183261527,-618.16157097,0.00019986,2]
[359613840,1746183261546,-1493.5363591,0.00019986,2]
[359613841,1746183261565,-7438.30206993,0.00019986,2]
[359613842,1746183263435,-450.0,0.00019785,2]
[359613843,1746183263458,-9550.0,0.00019986,2]
[359613844,1746183264236,-450.0,0.00019785,2]
[359613845,1746183264259,-9550.0,0.00019986,2]
[359613846,1746183265125,-6615.40233087,0.00019986,2]
[359613847,1746183265146,-921.095,0.00019989,2]
[359613848,1746183265167,-508.67123863,0.00019997,2]
[359613849,1746183265188,-274.81802997,0.00019997,2]
[359613850,1746183265208,-450.0,0.00019997,2]
[359613851,1746183265229,-450.0,0.00019997,2]
[359613852,1746183265250,-450.0,0.00019997,2]